fUSD/lending_fUSD_20250327
["ID","MTS","AMOUNT","RATE_DAILY","PERIOD"]
[356725717,1743037848198,-504.63514251,0.00041095,30]
[356725718,1743037848208,-500.0,0.00041095,30]
[356725719,1743037848218,-524.29480396,0.00041095,30]
[356725720,1743037848229,-618.54665921,0.00041095,30]
[356725721,1743037848238,-510.69163159,0.00041095,30]
[356725722,1743037848248,-500.0,0.00041095,30]
[356725723,1743037848258,-518.57911966,0.00041095,30]
[356725724,1743037848267,-550.40546023,0.00041095,30]
[356725725,1743037848278,-546.89737464,0.00041095,30]
[356725726,1743037848288,-530.81207806,0.00041095,30]
[356725727,1743037848299,-500.0,0.00041095,30]
[356725728,1743037848309,-573.02387966,0.00041095,30]
[356725729,1743037848319,-541.18480477,0.00041095,30]
[356725730,1743037848329,-520.54086842,0.00041095,30]
[356725731,1743037848339,-500.0,0.00041095,30]
[356725732,1743037848349,-510.55603416,0.00041095,30]
[356725733,1743037848363,-626.68455894,0.00041095,30]
[356725734,1743037848374,-500.0,0.00041095,30]
[356725735,1743037848384,-500.0,0.00041095,30]
[356725736,1743037848395,-525.41857567,0.00041095,30]
[356725737,1743037848404,-612.20450314,0.00041095,30]
[356725738,1743037848414,-563.32615451,0.00041095,30]
[356725739,1743037848423,-517.96679949,0.00041095,30]
[356725740,1743037848434,-555.20004095,0.00041095,30]
[356725741,1743037848444,-500.0,0.00041095,30]
[356725742,1743037848454,-566.08163041,0.00041095,30]
[356725743,1743037848464,-500.0,0.00041095,30]
[356725744,1743037848474,-518.90451813,0.00041095,30]
[356725745,1743037848484,-500.0,0.00041095,30]
[356725746,1743037848494,-500.0,0.00041095,30]
[356725747,1743037848504,-518.57308444,0.00041095,30]
[356725748,1743037848514,-513.06695117,0.00041095,30]
[356725749,1743037848523,-500.0,0.00041095,30]
[356725750,1743037848534,-613.48424942,0.00041095,30]
[356725751,1743037848544,-519.13095566,0.00041095,30]
[356725752,1743037848554,-500.0,0.00041095,30]
[356725753,1743037848564,-500.0,0.00041095,30]
[356725754,1743037848574,-523.40103687,0.00041095,30]
[356725755,1743037848584,-505.35485505,0.00041095,30]
[356725756,1743037848594,-500.0,0.00041095,30]
[356725757,1743037848604,-517.91239201,0.00041095,30]
[356725758,1743037848615,-579.69702788,0.00041095,30]
[356725759,1743037848625,-500.0,0.00041095,30]
[356725760,1743037848635,-500.0,0.00041095,30]
[356725761,1743037848646,-510.15897088,0.00041095,30]
[356725762,1743037848656,-578.36680248,0.00041095,30]
[356725763,1743037848665,-534.20232277,0.00041095,30]
[356725764,1743037848674,-543.15481286,0.00041095,30]
[356725765,1743037848683,-536.59186189,0.00041095,30]
[356725766,1743037848692,-517.71258812,0.00041095,30]
[356725767,1743037848702,-572.1922874,0.00041095,30]
[356725768,1743037848712,-517.8065224,0.00041095,30]
[356725769,1743037848722,-500.0,0.00041095,30]
[356725770,1743037848732,-500.0,0.00041095,30]
[356725771,1743037848742,-500.0,0.00041095,30]
[356725772,1743037848753,-500.0,0.00041095,30]
[356725773,1743037848764,-508.79063068,0.00041095,30]
[356725774,1743037848774,-560.98501443,0.00041095,30]
[356725775,1743037848784,-543.20457582,0.00041095,30]
[356725776,1743037848794,-500.0,0.00041095,30]
[356725777,1743037848804,-500.0,0.00041095,30]
[356725778,1743037848814,-572.86623699,0.00041095,30]
[356725779,1743037848824,-538.82880652,0.00041095,30]
[356725780,1743037848833,-500.0,0.00041095,30]
[356725781,1743037848844,-441.58980931,0.00041095,30]
[356725782,1743037848855,-500.0,0.00041095,30]
[356725783,1743037848865,-504.53982063,0.00041095,30]
[356725784,1743037848874,-537.09637229,0.00041095,30]
[356725785,1743037849035,-507.5131626,0.00041095,30]
[356725786,1743037849046,-536.85249483,0.00041095,30]
[356725787,1743037849055,-500.0,0.00041095,30]
[356725788,1743037849066,-500.0,0.00041095,30]
[356725789,1743037849075,-500.0,0.00041095,30]
[356725790,1743037849086,-500.0,0.00041095,30]
[356725791,1743037849096,-500.0,0.00041095,30]
[356725792,1743037849106,-581.77973949,0.00041095,30]
[356725793,1743037849117,-500.0,0.00041095,30]
[356725794,1743037849127,-506.38207022,0.00041095,30]
[356725795,1743037849137,-519.31588746,0.00041095,30]
[356725796,1743037849147,-500.0,0.00041095,30]
[356725797,1743037849157,-507.30330993,0.00041095,30]
[356725798,1743037849167,-511.62392667,0.00041095,30]
[356725799,1743037849178,-521.25093545,0.00041095,30]
[356725800,1743037849187,-500.0,0.00041095,30]
[356725801,1743037849197,-523.38789747,0.00041095,30]
[356725802,1743037849207,-508.79028239,0.00041095,30]
[356725803,1743037849217,-590.34042299,0.00041095,30]
[356725804,1743037849227,-512.47899781,0.00041095,30]
[356725805,1743037849237,-500.0,0.00041095,30]
[356725806,1743037849247,-524.79756999,0.00041095,30]
[356725807,1743037849257,-813.39057249,0.00041095,18]
[356725808,1743037849267,-500.0,0.00041095,30]
[356725809,1743037849277,-500.0,0.00041095,30]
[356725810,1743037849292,-515.71497746,0.00041095,30]
[356725811,1743037849302,-509.99436767,0.00041095,30]
[356725812,1743037849312,-543.15095309,0.00041095,30]
[356725813,1743037849321,-513.40506452,0.00041095,30]
[356725814,1743037849332,-536.88500431,0.00041095,30]
[356725815,1743037849343,-574.29721337,0.00041095,30]
[356725816,1743037849354,-516.97145286,0.00041095,30]
[356725817,1743037849366,-500.0,0.00041095,30]
[356725818,1743037849376,-533.06615366,0.00041095,30]
[356725819,1743037849386,-2028.39579637,0.00041095,30]
[356725820,1743037849397,-609.56376205,0.00041095,30]
[356725821,1743037849407,-510.12964294,0.00041095,30]
[356725822,1743037849417,-500.0,0.00041095,30]
[356725823,1743037849428,-500.0,0.00041095,30]
[356725824,1743037849439,-511.84590675,0.00041095,30]
[356725825,1743037849449,-507.88159593,0.00041095,30]
[356725826,1743037849459,-516.36271921,0.00041095,30]
[356725827,1743037849470,-500.0,0.00041095,30]
[356725828,1743037849480,-535.32943906,0.00041095,30]
[356725829,1743037849490,-608.10422112,0.00041095,30]
[356725830,1743037849500,-555.49080258,0.00041095,30]
[356725831,1743037849510,-528.36893321,0.00041095,30]
[356725832,1743037849520,-529.88134923,0.00041095,30]
[356725833,1743037849530,-500.0,0.00041095,30]
[356725834,1743037849540,-518.23793431,0.00041095,30]
[356725835,1743037849550,-500.0,0.00041095,30]
[356725836,1743037849560,-500.0,0.00041095,30]
[356725837,1743037849570,-535.36701306,0.00041095,30]
[356725838,1743037849580,-500.0,0.00041095,30]
[356725839,1743037849591,-505.10148621,0.00041095,30]
[356725840,1743037849600,-500.0,0.00041095,30]
[356725841,1743037849610,-555.20370835,0.00041095,30]
[356725842,1743037849620,-522.62874396,0.00041095,30]
[356725843,1743037849630,-533.85944814,0.00041095,30]
[356725844,1743037849640,-500.0,0.00041095,30]
[356725845,1743037849650,-616.71633642,0.00041095,30]
[356725846,1743037849660,-500.0,0.00041095,30]
[356725847,1743037849671,-521.27159593,0.00041095,30]
[356725848,1743037849681,-268.06653308,0.00041095,30]
[356725849,1743037849692,-530.64860732,0.00041095,30]
[356725850,1743037849703,-500.0,0.00041095,30]
[356725851,1743037849713,-549.89312391,0.00041095,30]
[356725852,1743037849724,-538.32893162,0.00041095,30]
[356725853,1743037849734,-517.79950054,0.00041095,30]
[356725854,1743037849745,-501.63896346,0.00041095,30]
[356725855,1743037849755,-519.04338883,0.00041095,30]
[356725856,1743037849766,-500.0,0.00041095,30]
[356725857,1743037849775,-502.72656896,0.00041095,30]
[356725858,1743037849785,-551.96809126,0.00041095,30]
[356725859,1743037849796,-500.0,0.00041095,30]
[356725860,1743037849807,-517.92803656,0.00041095,30]
[356725861,1743037849817,-565.66613768,0.00041095,30]
[356725862,1743037849827,-516.25622569,0.00041095,30]
[356725863,1743037849837,-516.89866336,0.00041095,30]
[356725864,1743037849847,-519.2809705,0.00041095,30]
[356725865,1743037849857,-169.70085129,0.00041095,30]
[356725866,1743037849867,-514.29237699,0.00041095,30]
[356725867,1743037849877,-531.69227391,0.00041095,30]
[356725868,1743037849887,-500.0,0.00041095,30]
[356725869,1743037849897,-544.36722676,0.00041095,30]
[356725870,1743037849907,-521.99874565,0.00041095,30]
[356725871,1743037849917,-500.0,0.00041095,30]
[356725872,1743037849926,-515.02941831,0.00041095,30]
[356725873,1743037849936,-500.0,0.00041095,30]
[356725874,1743037849945,-522.54750783,0.00041095,30]
[356725875,1743037849956,-500.0,0.00041095,30]
[356725876,1743037849965,-500.0,0.00041095,30]
[356725877,1743037849975,-526.31260676,0.00041095,30]
[356725878,1743037849984,-568.3754992,0.00041095,30]
[356725879,1743037849993,-501.47248387,0.00041095,30]
[356725880,1743037850002,-503.15287138,0.00041095,30]
[356725881,1743037850011,-500.0,0.00041095,30]
[356725882,1743037850021,-511.36489587,0.00041095,30]
[356725883,1743037850031,-500.0,0.00041095,30]
[356725884,1743037850041,-500.0,0.00041095,30]
[356725885,1743037850051,-500.42318483,0.00041095,30]
[356725886,1743037850060,-500.0,0.00041095,30]
[356725887,1743037850070,-511.60840294,0.00041095,30]
[356725888,1743037850080,-500.0,0.00041095,30]
[356725889,1743037850091,-518.92100133,0.00041095,30]
[356725890,1743037850101,-500.0,0.00041095,30]
[356725891,1743037850111,-500.0,0.00041095,30]
[356725892,1743037850121,-511.2474575,0.00041095,30]
[356725893,1743037850131,-503.73776788,0.00041095,30]
[356725894,1743037850140,-500.0,0.00041095,30]
[356725895,1743037850150,-530.9060663,0.00041095,30]
[356725896,1743037850160,-602.96835477,0.00041095,30]
[356725897,1743037850169,-232.84888796,0.00041095,30]
[356725898,1743037850179,-504.5742394,0.00041095,30]
[356725899,1743037850188,-632.57,0.00041095,30]
[356725900,1743037850198,-506.2402951,0.00041095,30]
[356725901,1743037850207,-521.1942972,0.00041095,30]
[356725902,1743037850216,-549.28137856,0.00041095,30]
[356725903,1743037850226,-500.0,0.00041095,30]
[356725904,1743037850235,-535.90649085,0.00041095,30]
[356725905,1743037850245,-500.0,0.00041095,30]
[356725906,1743037850254,-515.17785924,0.00041095,30]
[356725907,1743037850263,-524.0743901,0.00041095,30]
[356725908,1743037850273,-503.73306586,0.00041095,30]
[356725909,1743037850283,-500.0,0.00041095,30]
[356725910,1743037850292,-502.65879153,0.00041095,30]
[356725911,1743037850301,-500.0,0.00041095,30]
[356725912,1743037850311,-518.25273443,0.00041095,30]
[356725913,1743037850320,-500.0,0.00041095,30]
[356725914,1743037850329,-478.42573564,0.00041095,2]
[356725915,1743037850338,-500.0,0.00041095,30]
[356725916,1743037850350,-500.0,0.00041095,30]
[356725917,1743037850362,-513.93496955,0.00041095,30]
[356725918,1743037850371,-500.0,0.00041095,30]
[356725919,1743037850381,-500.0,0.00041095,30]
[356725920,1743037850390,-502.31953375,0.00041095,30]
[356725921,1743037850401,-500.0,0.00041095,30]
[356725922,1743037850411,-500.0,0.00041095,30]
[356725923,1743037850420,-500.0,0.00041095,30]
[356725924,1743037850431,-500.0,0.00041095,30]
[356725925,1743037850442,-500.0,0.00041095,30]
[356725926,1743037850452,-500.0,0.00041095,30]
[356725927,1743037850461,-500.0,0.00041095,30]
[356725928,1743037850471,-189.1505116,0.00041095,30]
[356725929,1743037850481,-500.0,0.00041095,30]
[356725930,1743037850491,-500.0,0.00041095,30]
[356725931,1743037850502,-500.0,0.00041095,30]
[356725932,1743037850513,-500.0,0.00041095,30]
[356725933,1743037850523,-444.16957512,0.00041095,30]
[356725934,1743037850533,-500.0,0.00041095,30]
[356725935,1743037850543,-500.0,0.00041095,30]
[356725936,1743037850553,-500.0,0.00041095,30]
[356725937,1743037850563,-500.0,0.00041095,30]
[356725938,1743037850573,-500.0,0.00041095,30]
[356725939,1743037850583,-500.0,0.00041095,30]
[356725940,1743037850594,-500.0,0.00041095,30]
[356725941,1743037850604,-500.0,0.00041095,30]
[356725942,1743037850614,-500.0,0.00041095,30]
[356725943,1743037850624,-500.0,0.00041095,30]
[356725944,1743037850634,-500.0,0.00041095,30]
[356725945,1743037850644,-500.0,0.00041095,30]
[356725946,1743037850654,-500.0,0.00041095,30]
[356725947,1743037850665,-500.0,0.00041095,30]
[356725948,1743037850675,-500.0,0.00041095,30]
[356725949,1743037850685,-500.0,0.00041095,30]
[356725950,1743037850696,-500.0,0.00041095,30]
[356725951,1743037850705,-500.0,0.00041095,30]
[356725952,1743037850716,-500.0,0.00041095,15]
[356725953,1743037850726,-500.0,0.00041095,30]
[356725954,1743037850736,-500.0,0.00041095,30]
[356725955,1743037850746,-500.0,0.00041095,30]
[356725956,1743037850756,-500.0,0.00041095,30]
[356725957,1743037850767,-500.0,0.00041095,30]
[356725958,1743037850777,-500.0,0.00041095,30]
[356725959,1743037850787,-500.0,0.00041095,30]
[356725960,1743037850797,-500.0,0.00041095,30]
[356725961,1743037850807,-500.0,0.00041095,30]
[356725962,1743037850817,-500.0,0.00041095,30]
[356725963,1743037850827,-500.0,0.00041095,30]
[356725964,1743037850839,-425.66925003,0.00041095,30]
[356725965,1743037850850,-500.0,0.00041095,30]
[356725966,1743037850861,-500.0,0.00041095,30]
[356725967,1743037850872,-500.0,0.00041095,30]
[356725968,1743037850882,-500.0,0.00041095,30]
[356725969,1743037850893,-500.0,0.00041095,30]
[356725970,1743037850904,-500.0,0.00041095,30]
[356725971,1743037850914,-500.0,0.00041095,30]
[356725972,1743037850924,-1500.0,0.00041095,30]
[356725973,1743037850934,-500.0,0.00041095,30]
[356725974,1743037850944,-201.75973103,0.00041095,30]
[356725975,1743037850954,-500.0,0.00041095,30]
[356725976,1743037850964,-500.0,0.00041095,30]
[356725977,1743037850974,-381.72745996,0.00041095,30]
[356725978,1743037850984,-500.0,0.00041095,30]
[356725979,1743037850993,-500.0,0.00041095,30]
[356725980,1743037851003,-500.0,0.00041095,30]
[356725981,1743037851012,-500.0,0.00041095,30]
[356725982,1743037851021,-519.48086414,0.00041095,30]
[356725983,1743037851031,-500.0,0.00041095,30]
[356725984,1743037851040,-500.0,0.00041095,30]
[356725985,1743037851050,-500.0,0.00041095,30]
[356725986,1743037851060,-500.0,0.00041095,30]
[356725987,1743037851070,-500.0,0.00041095,30]
[356725988,1743037851080,-611.5322129,0.00041095,30]
[356725989,1743037851092,-500.0,0.00041095,30]
[356725990,1743037851102,-500.0,0.00041095,30]
[356725991,1743037851112,-500.0,0.00041095,30]
[356725992,1743037851122,-500.0,0.00041095,30]
[356725993,1743037851133,-626.89842796,0.00041095,30]
[356725994,1743037851143,-500.0,0.00041095,30]
[356725995,1743037851152,-500.0,0.00041095,30]
[356725996,1743037851163,-643.1444567,0.00041095,30]
[356725997,1743037851172,-354.57261232,0.00041095,30]
[356725998,1743037851182,-500.0,0.00041095,30]
[356725999,1743037851192,-507.91434809,0.00041095,30]
[356726000,1743037851202,-500.0,0.00041095,30]
[356726001,1743037851211,-500.0,0.00041095,30]
[356726002,1743037851221,-500.0,0.00041095,30]
[356726003,1743037851230,-184.960501,0.00041095,30]
[356726004,1743037851240,-500.0,0.00041095,30]
[356726005,1743037851249,-500.0,0.00041095,30]
[356726006,1743037851259,-500.0,0.00041095,30]
[356726007,1743037851269,-500.0,0.00041095,30]
[356726008,1743037851278,-500.0,0.00041095,30]
[356726009,1743037851287,-500.0,0.00041095,30]
[356726010,1743037851296,-500.0,0.00041095,30]
[356726011,1743037851306,-500.0,0.00041095,30]
[356726012,1743037851316,-9621.3,0.00041095,30]
[356726013,1743037851326,-500.0,0.00041095,30]
[356726014,1743037851335,-500.0,0.00041095,30]
[356726015,1743037851346,-500.0,0.00041095,30]
[356726016,1743037851357,-500.0,0.00041095,30]
[356726017,1743037851367,-500.0,0.00041095,30]
[356726018,1743037851377,-380.25523136,0.00041095,30]
[356726019,1743037851387,-500.0,0.00041095,30]
[356726020,1743037851396,-500.0,0.00041095,30]
[356726021,1743037851407,-425.23301206,0.00041095,30]
[356726022,1743037851416,-500.0,0.00041095,30]
[356726023,1743037851426,-500.0,0.00041095,30]
[356726024,1743037851439,-500.0,0.00041095,30]
[356726025,1743037851449,-500.0,0.00041095,30]
[356726026,1743037851458,-500.0,0.00041095,30]
[356726027,1743037851468,-500.0,0.00041095,30]
[356726028,1743037851477,-500.0,0.00041095,30]
[356726029,1743037851487,-500.0,0.00041095,30]
[356726030,1743037851496,-500.0,0.00041095,30]
[356726031,1743037851505,-524.53222655,0.00041095,30]
[356726032,1743037851515,-500.0,0.00041095,30]
[356726033,1743037851525,-500.0,0.00041095,30]
[356726034,1743037851535,-500.0,0.00041095,2]
[356726035,1743037851545,-500.0,0.00041095,30]
[356726036,1743037851554,-593.39687767,0.00041095,30]
[356726037,1743037851563,-150.0,0.00041095,30]
[356726038,1743037851572,-500.0,0.00041095,30]
[356726039,1743037851582,-500.0,0.00041095,30]
[356726040,1743037851591,-563.2884133,0.00041095,30]
[356726041,1743037851601,-500.0,0.00041095,30]
[356726042,1743037851610,-500.0,0.00041095,30]
[356726043,1743037851620,-500.0,0.00041095,30]
[356726044,1743037851630,-209.89243066,0.00041095,30]
[356726045,1743037851640,-500.0,0.00041095,30]
[356726046,1743037851649,-500.0,0.00041095,30]
[356726047,1743037851658,-1124.84,0.00041095,30]
[356726048,1743037851668,-533.150685,0.00041095,30]
[356726049,1743037851677,-500.0,0.00041095,30]
[356726050,1743037851686,-500.0,0.00041095,30]
[356726051,1743037851697,-500.0,0.00041095,30]
[356726052,1743037851706,-500.0,0.00041095,30]
[356726053,1743037851715,-500.0,0.00041095,30]
[356726054,1743037851724,-500.0,0.00041095,30]
[356726055,1743037851734,-514.17469667,0.00041095,30]
[356726056,1743037851744,-500.0,0.00041095,30]
[356726057,1743037851754,-500.0,0.00041095,7]
[356726058,1743037851764,-500.0,0.00041095,30]
[356726059,1743037851774,-498.51221049,0.00041095,30]
[356726060,1743037851783,-500.0,0.00041095,30]
[356726061,1743037851792,-500.0,0.00041095,30]
[356726062,1743037851801,-500.0,0.00041095,30]
[356726063,1743037851811,-500.0,0.00041095,30]
[356726064,1743037851820,-574.34201122,0.00041095,30]
[356726065,1743037851830,-500.0,0.00041095,30]
[356726066,1743037851842,-500.0,0.00041095,30]
[356726067,1743037851851,-500.0,0.00041095,30]
[356726068,1743037851861,-500.0,0.00041095,30]
[356726069,1743037851870,-476.97516028,0.00041095,30]
[356726070,1743037851880,-500.0,0.00041095,30]
[356726071,1743037851889,-500.0,0.00041095,30]
[356726072,1743037852016,-500.0,0.00041095,30]
[356726073,1743037852027,-500.0,0.00041095,30]
[356726074,1743037852037,-500.0,0.00041095,30]
[356726075,1743037852046,-500.0,0.00041095,30]
[356726076,1743037852055,-500.0,0.00041095,30]
[356726077,1743037852065,-802.62,0.00041095,30]
[356726078,1743037852074,-500.0,0.00041095,30]
[356726079,1743037852084,-3003.7,0.00041095,2]
[356726080,1743037852096,-500.0,0.00041095,30]
[356726081,1743037852106,-500.0,0.00041095,30]
[356726082,1743037852116,-500.0,0.00041095,7]
[356726083,1743037852125,-500.0,0.00041095,30]
[356726084,1743037852134,-500.0,0.00041095,30]
[356726085,1743037852143,-500.0,0.00041095,30]
[356726086,1743037852152,-500.0,0.00041095,30]
[356726087,1743037852162,-500.0,0.00041095,30]
[356726088,1743037852171,-500.0,0.00041095,30]
[356726089,1743037852181,-500.0,0.00041095,30]
[356726090,1743037852190,-500.0,0.00041095,30]
[356726091,1743037852200,-577.95640877,0.00041095,30]
[356726092,1743037852210,-500.0,0.00041095,30]
[356726093,1743037852219,-517.30449153,0.00041095,30]
[356726094,1743037852229,-500.0,0.00041095,30]
[356726095,1743037852238,-500.0,0.00041095,30]
[356726096,1743037852248,-387.31171242,0.00041095,30]
[356726097,1743037852257,-500.0,0.00041095,30]
[356726098,1743037852267,-230.59557235,0.00041095,30]
[356726099,1743037852276,-654.58,0.00041095,30]
[356726100,1743037852286,-500.0,0.00041095,30]
[356726101,1743037852296,-500.0,0.00041095,30]
[356726102,1743037852306,-500.0,0.00041095,30]
[356726103,1743037852315,-588.40510152,0.00041095,30]
[356726104,1743037852324,-500.0,0.00041095,30]
[356726105,1743037852334,-500.0,0.00041095,30]
[356726106,1743037852345,-500.0,0.00041095,30]
[356726107,1743037852356,-500.0,0.00041095,30]
[356726108,1743037852367,-500.0,0.00041095,30]
[356726109,1743037852376,-500.0,0.00041095,30]
[356726110,1743037852386,-500.0,0.00041095,30]
[356726111,1743037852395,-156.679,0.00041122,30]
[356726112,1743037852406,-1286.66628754,0.00041233,15]
[356726113,1743037852415,-500.0,0.0004126,60]
[356726114,1743037852424,-500.0,0.0004126,60]
[356726115,1743037852436,-1443.58,0.000413,2]
[356726116,1743037852446,-255.47,0.000413,30]
[356726117,1743037852456,-151.0,0.00041359,14]
[356726118,1743037852465,-779.14176,0.00041359,14]
[356726119,1743037852475,-779.14176,0.00041359,14]
[356726120,1743037852485,-191.080462,0.00041359,14]
[356726121,1743037852495,-151.0,0.00041359,14]
[356726122,1743037852504,-76457.0914247,0.00041359,3]
[356726123,1743037852513,-21576.3736026,0.00041359,3]
[356726124,1743037852522,-500.0,0.00041368,30]
[356726125,1743037852531,-500.0,0.00041369,10]
[356726126,1743037852541,-500.0,0.00041369,30]
[356726127,1743037852550,-2000.0,0.00041369,2]
[356726128,1743037852559,-537.87723342,0.00041369,30]
[356726129,1743037852568,-2350.58,0.00041369,30]
[356726130,1743037852577,-500.0,0.00041369,30]
[356726131,1743037852586,-163.03684499,0.00041369,30]
[356726132,1743037852597,-500.0,0.00041369,30]
[356726133,1743037852606,-455.25185477,0.00041369,30]
[356726134,1743037852616,-500.0,0.00041369,30]
[356726135,1743037852625,-500.0,0.00041369,30]
[356726136,1743037852635,-507.17627231,0.00041369,30]
[356726137,1743037852644,-500.0,0.00041369,30]
[356726138,1743037852653,-515.86903509,0.00041369,30]
[356726139,1743037852662,-150.51066445,0.00041369,30]
[356726140,1743037852671,-500.0,0.00041369,2]
[356726141,1743037852681,-510.77106901,0.00041369,30]
[356726142,1743037852691,-500.0,0.00041369,30]
[356726143,1743037852700,-525.31558054,0.00041369,30]
[356726144,1743037852710,-500.0,0.00041369,30]
[356726145,1743037852720,-518.27886207,0.00041369,30]
[356726146,1743037852730,-306.16825063,0.00041369,30]
[356726147,1743037852740,-520.38793627,0.00041369,30]
[356726148,1743037852749,-536.16850214,0.00041369,30]
[356726149,1743037852759,-500.0,0.00041369,30]
[356726150,1743037852768,-500.0,0.00041369,30]
[356726151,1743037852777,-514.49704768,0.00041369,30]
[356726152,1743037852787,-500.0,0.00041369,30]
[356726153,1743037852797,-515.89281661,0.00041369,30]
[356726154,1743037852807,-520.06405946,0.00041369,30]
[356726155,1743037852816,-525.72211133,0.00041369,30]
[356726156,1743037852826,-529.99920775,0.00041369,30]
[356726157,1743037852835,-567.18892625,0.00041369,30]
[356726158,1743037852846,-519.04070606,0.00041369,30]
[356726159,1743037852855,-546.08839776,0.00041369,30]
[356726160,1743037852865,-501.12663796,0.00041369,30]
[356726161,1743037852875,-525.76486975,0.00041369,30]
[356726162,1743037852884,-512.51048575,0.00041369,30]
[356726163,1743037852894,-518.87587172,0.00041369,30]
[356726164,1743037852904,-546.5715283,0.00041369,30]
[356726165,1743037852914,-500.0,0.00041369,30]
[356726166,1743037852923,-500.0,0.00041369,30]
[356726167,1743037852933,-558.82316659,0.00041369,30]
[356726168,1743037852942,-1079.35,0.00041369,2]
[356726169,1743037852952,-514.93371855,0.00041369,30]
[356726170,1743037852962,-525.7556535,0.00041369,30]
[356726171,1743037852971,-524.9502143,0.00041369,30]
[356726172,1743037852981,-500.0,0.00041369,30]
[356726173,1743037852991,-500.0,0.00041369,30]
[356726174,1743037853000,-538.54028562,0.00041369,30]
[356726175,1743037853009,-500.0,0.00041369,30]
[356726176,1743037853019,-500.0,0.00041369,30]
[356726177,1743037853028,-500.0,0.00041369,30]
[356726178,1743037853038,-507.5912052,0.00041369,30]
[356726179,1743037853047,-523.28274868,0.00041369,30]
[356726180,1743037853056,-533.07110368,0.00041369,30]
[356726181,1743037853066,-530.73761277,0.00041369,30]
[356726182,1743037853075,-500.0,0.00041369,30]
[356726183,1743037853084,-546.33579936,0.00041369,30]
[356726184,1743037853095,-500.0,0.00041369,2]
[356726185,1743037853104,-533.62262998,0.00041369,30]
[356726186,1743037853114,-505.53471897,0.00041369,30]
[356726187,1743037853123,-522.80985451,0.00041369,30]
[356726188,1743037853132,-517.45024969,0.00041369,30]
[356726189,1743037853142,-500.0,0.00041369,30]
[356726190,1743037853151,-574.01103675,0.00041369,30]
[356726191,1743037853160,-531.15526789,0.00041369,30]
[356726192,1743037853170,-506.74068501,0.00041369,30]
[356726193,1743037853180,-500.0,0.00041369,30]
[356726194,1743037853190,-513.95916734,0.00041369,30]
[356726195,1743037853199,-517.64778934,0.00041369,30]
[356726196,1743037853208,-500.0,0.00041369,30]
[356726197,1743037853217,-500.0,0.00041369,30]
[356726198,1743037853227,-515.37372669,0.00041369,30]
[356726199,1743037853236,-544.15427527,0.00041369,30]
[356726200,1743037853245,-539.71964562,0.00041369,30]
[356726201,1743037853254,-500.0,0.00041369,30]
[356726202,1743037853264,-534.91190966,0.00041369,30]
[356726203,1743037853273,-562.62903159,0.00041369,30]
[356726204,1743037853282,-500.0,0.00041369,30]
[356726205,1743037853292,-586.13080574,0.00041369,30]
[356726206,1743037853301,-512.26842362,0.00041369,30]
[356726207,1743037853311,-517.12876781,0.00041369,30]
[356726208,1743037853320,-500.0,0.00041369,30]
[356726209,1743037853330,-620.34447457,0.00041369,30]
[356726210,1743037853340,-548.9412412,0.00041369,30]
[356726211,1743037853349,-503.96088728,0.00041369,30]
[356726212,1743037853364,-522.94214539,0.00041369,30]
[356726213,1743037853373,-533.00262295,0.00041369,30]
[356726214,1743037853382,-524.61805557,0.00041369,30]
[356726215,1743037853391,-520.42250546,0.00041369,30]
[356726216,1743037853402,-232.35280364,0.00041369,30]